Cogmind - Beta 10.2 @@@ ROGUE MODE // 2020.11.20 @ 01:45:06 Player: asher1611 Result: Destroyed by G-34 Mercenary with Small Laser Performance ------------- Evolutions (0) 0 Regions Visited (2) 400 Robots Destroyed (31) 155 Value Destroyed (436) 436 Prototype IDs (0) 0 Alien Tech Used (0) 0 Bonus (0) 0 TOTAL SCORE: 991 Bonus ------- None Cogmind --------- Core Integrity 0/250 Matter 226/300 Energy 78/250 System Corruption 3% Temperature Cool (166) Movement Rolling (90) Location -10/Mines Parts ------- > --- POWER (1) -------- Ion Engine > --- PROPULSION (2) --- Wheel Compact Wheel > --- UTILITY (2) ------ Medium Storage Unit Medium Storage Unit > --- WEAPON (2) ------- Particle Gun > --- INVENTORY (12) --- Light Ion Engine Aluminum Leg Compact Wheel Grenade Launcher Peak State ------------ > --- POWER ------------ Light Ion Engine > --- PROPULSION ------- Wheel Compact Wheel > --- UTILITY ---------- Medium Storage Unit Visual Processing Unit > --- WEAPON ----------- EM Shotgun Light Assault Rifle > --- INVENTORY -------- Light Ion Engine Medium Storage Unit Light Assault Rifle Grenade Launcher Mining Laser [Rating: 9] Favorites ----------- Power Light Ion Engine Engine Light Ion Engine Propulsion Wheel Leg Aluminum Leg Wheel Wheel Utility Visual Processing Unit Storage Medium Storage Unit Processor Visual Processing Unit Weapon Light Assault Rifle Energy Gun EM Shotgun Energy Cannon Beam Cannon Ballistic Gun Light Assault Rifle Launcher Grenade Launcher Special Weapon Mining Laser Build | -11 -10 -10 ------- Run | Scr Mat Min Slots Evolved . | . . . Power . | . . . Propulsion . | . . . Utility . | . . . Weapon . | . . . Parts Attached 41 | 6 18 17 Power 6 | 1 3 2 Engine 6 | 1 3 2 Core . | . . . Reactor . | . . . Propulsion 6 | 2 3 1 Treads . | . . . Leg 2 | 2 . . Wheel 4 | . 3 1 Hover . | . . . Flight . | . . . Utility 5 | 1 3 1 Device . | . . . Storage 3 | . 2 1 Processor 2 | 1 1 . Hackware . | . . . Protection . | . . . Artifact . | . . . Weapon 24 | 2 9 13 Energy Gun 5 | 1 3 1 Energy Cannon 3 | . 3 . Ballistic Gun 10 | 1 2 7 Ballistic Cannon . | . . . Launcher 3 | . 1 2 Special Weapon 3 | . . 3 Impact Weapon . | . . . Slashing Weapon . | . . . Piercing Weapon . | . . . Special Melee Weapon . | . . . Unidentified Prototypes . | . . . Parts Lost 11 | . 2 9 Power 2 | . . 2 Propulsion 1 | . 1 . Utility 1 | . . 1 Weapon 7 | . 1 6 Highest Loss Streak 5 | . 2 5 Average Slot Usage (%) 94 | . 94 94 Engine 13 | . 14 13 Leg 6 | . 8 . Wheel 21 | . 18 28 Storage 10 | . 7 18 Processor 13 | . 15 7 Energy Gun 4 | . 4 3 Energy Cannon 8 | . 11 . Ballistic Gun 13 | . 11 16 Special Weapon 1 | . . 3 Naked Turns . | . . . Heaviest Build 22 | 6 15 22 Greatest Support 26 | 20 26 26 Greatest Overweight (x) 1 | . 1 . Average Overweight (x) . | . . . Largest Inventory Capacity 12 | 4 8 12 Average Capacity 6 | 4 5 9 Most Carried 8 | 4 7 8 Average Carried 4 | 2 4 6 Final Capacity 12 | 4 8 12 Final Carried 7 | 4 7 4 Class Distribution -------------------- 59% | Mutant 40% | Scavenger-Mutant Dominant Class ---------------- Mutant | -10/Materials Scavenger-Mutant | -10/Mines Resources | -11 -10 -10 ----------- Run | Scr Mat Min Matter Collected 680 | 107 417 156 Remotely . | . . . Salvage Created 792 | 105 469 218 Parts 61 | 11 29 21 Haulers Intercepted . | . . . Recyclers Shooed 2 | . 1 1 Parts Field Recycled . | . . . Retrieved Matter . | . . . Parts Self-Destructed . | . . . Prevented . | . . . Kills | -11 -10 -10 ------- Run | Scr Mat Min Combat Hostiles Destroyed 20 | 1 11 8 Guns 8 | 1 4 3 Cannons 5 | . 5 . AOE 7 | . 2 5 Classes Destroyed 7 | 3 3 1 Worker 3 | 1 2 . Tunneler 6 | 2 . 4 Recycler 2 | . 2 . Watcher 2 | . 2 . Swarmer 12 | . 9 3 Grunt 6 | 1 2 3 Assembled 2 | . . 2 Best Kill Streak 5 | 3 3 5 Combat Bots Only 4 | 1 3 4 Max Kills in Single Turn 2 | 1 2 2 Gunslinging . | . . . Exploded 2 | . 2 2 Melee . | . . . Uniques/NPCs Destroyed . | . . . Combat | -11 -10 -10 -------- Run | Scr Mat Min Damage Taken 1316 | 27 486 803 Core 255 | 13 84 158 Absorbed by Shields . | . . . Core Remaining (%) 94 | 94 . . Volleys Fired 105 | 6 57 42 Largest 2 | 2 2 2 Hottest 165 | 60 120 165 Shots Fired 202 | 12 111 79 Gun 127 | 12 56 59 Cannon 50 | . 50 . Launcher 10 | . 5 5 Special 15 | . . 15 Kinetic 97 | 6 43 48 Thermal 67 | . 50 17 Explosive 10 | . 5 5 Electromagnetic 28 | 6 13 9 Robot Hit Streak 10 | 5 6 10 Robot Miss Streak 4 | 1 4 3 Penetration Max . | . . . Secondary Targets 2 | . 1 1 Max Gunslinging Chain 1 | . 1 1 Shots Hit Robots 97 | 7 53 37 Core Hits 48 | 5 22 21 Critical Hits 2 | . 1 1 Critical Kills . | . . . Critical Parts Destroyed 2 | . 1 1 Melee Attacks . | . . . Impact . | . . . Slashing . | . . . Piercing . | . . . Sneak Attacks . | . . . Combat Hostiles . | . . . Follow-up Attacks . | . . . Damage Inflicted 1394 | 137 673 584 Guns 593 | 93 230 270 Cannons 386 | . 386 . Explosions 398 | 44 40 314 Melee . | . . . Ramming 17 | . 17 . Kinetic 288 | 20 108 160 Thermal 447 | 44 386 17 Explosive 354 | . 40 314 Electromagnetic 288 | 73 122 93 Impact . | . . . Slashing . | . . . Piercing . | . . . Highest Corruption 3 | . . 3 Average Corruption 3 | . . 3 Corruption Purged . | . . . Effects 5 | . . 5 Message Errors 2 | . . 2 Matter Fused 1 | . . 1 Targeting Errors 2 | . . 2 Overload Shots . | . . . Overflow Damage 51 | . 16 35 Projectiles 16 | . 16 . Explosions 35 | . . 35 Melee . | . . . Knockbacks . | . . . Impact . | . . . Kinetic . | . . . Secondary . | . . . Self-Inflicted Damage 54 | 5 8 41 Shots 2 | 1 . 1 Rammed 1 | . 1 . Targets Rammed 1 | . 1 . Kicked . | . . . Crushed . | . . . Highest Temperature 300 | 52 300 160 Average Temperature 75 | 22 93 48 Received Heat Transfer 219 | 12 30 177 Siege Activations . | . . . Robots Corrupted . | . . . Combat Hostiles . | . . . Parts Fried . | . . . Impact Corruptions . | . . . Robots Melted . | . . . Combat Hostiles . | . . . Parts Melted 1 | . 1 . Heat Transferred 851 | . 814 37 Parts Sabotaged . | . . . Parts Stolen . | . . . Parts Stripped . | . . . Power Chain Reactions 1 | 1 . . Missiles Intercepted . | . . . Alert | -11 -10 -10 ------- Run | Scr Mat Min Peak Influence 258 | 35 258 135 Initial 25 | . 22 25 Average 122 | 7 146 93 Maximum Alert Level 1 | . 1 . Low Security (%) 86 | 100 79 100 Level 1 13 | . 20 . Level 2 . | . . . Level 3 . | . . . Level 4 . | . . . Level 5 . | . . . High Security . | . . . Max Security . | . . . Squads Dispatched 1 | . 1 . Investigation 1 | . 1 . Extermination . | . . . Reinforcement . | . . . Assault . | . . . Garrison . | . . . Intercept . | . . . Construction Impeded . | . . . Haulers Reinforced . | . . . Stealth | -11 -10 -10 --------- Run | Scr Mat Min Distress Signals 1 | . . 1 Communications Jammed . | . . . Distress Signals . | . . . Times Spotted 28 | 1 17 10 Peak Tracking Total 5 | 1 5 3 Tactical Retreats 1 | . . 1 Traps | -11 -10 -10 ------- Run | Scr Mat Min Traps Triggered 2 | . 2 . Indirectly . | . . . Trap Hack Attempts . | . . . Triggered . | . . . Disarmed . | . . . Reprogrammed . | . . . Reused . | . . . Traps Extracted . | . . . Installed . | . . . Triggered . | . . . Machines | -11 -10 -10 ---------- Run | Scr Mat Min Machines Disabled 2 | . 2 . Max in Single Turn 1 | . 1 . Machines Sabotaged . | . . . Garrisons Compromised . | . . . Overloaded Fab Kills . | . . . Fab Network Shutdowns . | . . . Hacking | -11 -10 -10 --------- Run | Scr Mat Min Machines Accessed 7 | . 7 . Terminals 6 | . 6 . Fabricators . | . . . Repair Stations 1 | . 1 . Recycling Units . | . . . Scanalyzers . | . . . Garrison Access . | . . . Total Hacks 19 | . 19 . Successful 14 | . 14 . Failed 5 | . 5 . Catastrophic 1 | . 1 . Database Lockouts . | . . . Manual . | . . . Terminals 15 | . 15 . Fabricators . | . . . Repair Stations 4 | . 4 . Recycling Units . | . . . Scanalyzers . | . . . Garrison Access . | . . . Terminal Hacks 10 | . 10 . Record 4 | . 4 . Branch Access Points 1 | . 1 . Emergency Access Points 1 | . 1 . Alert Level 1 | . 1 . Dispatch Records 1 | . 1 . Maintenance Status 1 | . 1 . Transport Status 1 | . 1 . Fabricator Hacks . | . . . Repair Station Hacks 4 | . 4 . Scan Component 2 | . 2 . Repair 2 | . 2 . Recycling Unit Hacks . | . . . Scanalyzer . | . . . Garrison Access Hacks . | . . . Unauthorized Hacks . | . . . Terminals . | . . . Fabricators . | . . . Repair Stations . | . . . Recycling Units . | . . . Scanalyzers . | . . . Garrison Access . | . . . Data Cores Recovered . | . . . Used . | . . . Hacking Detections 3 | . 3 . Full Trace Events 2 | . 2 . Feedback Events . | . . . Feedback Blocked . | . . . Robot Schematics Acquired . | . . . Robots Built . | . . . Matter . | . . . Time . | . . . Total Robot Build Rating . | . . . Part Schematics Acquired . | . . . Parts Built . | . . . Matter . | . . . Time . | . . . Total Part Build Rating . | . . . Parts Repaired 2 | . 2 . Time 52 | . 52 . Parts Recycled . | . . . Recycled Matter . | . . . Retrieved Matter . | . . . Retrieved Components . | . . . Parts Scanalyzed . | . . . Part Schematics Acquired . | . . . Parts Damaged . | . . . Bothacking | -11 -10 -10 ------------ Run | Scr Mat Min Used RIF Installer . | . . . Robots Hacked . | . . . Non-combat . | . . . Combat . | . . . Robot Hacks Applied . | . . . Relay Couplers Released . | . . . Robots Rewired . | . . . Allies Hacked . | . . . Hacks Repelled . | . . . Allies | -11 -10 -10 -------- Run | Scr Mat Min Total Allies . | . . . Largest Group . | . . . Highest-Rated Group . | . . . Highest-Rated Ally . | . . . Total Orders . | . . . Ally Attacks . | . . . Total Damage . | . . . Kills . | . . . Allies Corrupted . | . . . Allies Melted . | . . . Intel | -11 -10 -10 ------- Run | Scr Mat Min Robot Analysis Total . | . . . Derelict Logs Recovered 1 | . . 1 Drone Launches . | . . . Drone Recoveries . | . . . Exploration | -11 -10 -10 ------------- Run | Scr Mat Min Turns Passed 1220 | 89 812 319 Spaces Moved 895 | 63 683 149 Core 26 | 26 . . Treads . | . . . Legs 119 | 37 82 . Wheels 750 | . 601 149 Hover . | . . . Flight . | . . . Fastest Speed 50 | 50 80 90 Average Speed 88 | 91 88 90 Slowest Speed 120 | 120 120 90 Overloaded Moves . | . . . Propulsion Burnouts . | . . . Robots Hopped . | . . . Cave-ins Triggered 1 | . . 1 Exploration Rate (%) 38 | 8 82 25 Regions Visited 2 Branch Regions 1 Pre-discovered Areas . | . . . Known Exits Taken 1 | . 1 . Unknown Exits Taken 1 | 1 . . Scrap Searched . | . . . Spaces Dug 4 | . . 4 Terrain Destroyed 75 | . 30 45 Melee . | . . . Projectile 5 | . . 5 AOE 70 | . 30 40 Terrain Rammed . | . . . Walls Destroyed . | . . . Machines Disabled . | . . . Actions | -11 -10 -10 --------- Run | Scr Mat Min Total 1104 | 84 790 230 Wait 17 | . 2 15 Move 893 | 62 682 149 Hop . | . . . Pick Up 37 | 10 21 6 Fast Attach . | . . . Attach 22 | 6 8 8 Detach . | . . . Swap 19 | . 10 9 Drop 10 | . 9 1 Fire 105 | 6 57 42 Melee . | . . . Ram 1 | . 1 . Kick . | . . . Crush . | . . . Escape Stasis . | . . . Rewire . | . . . Trap . | . . . Miscellaneous . | . . . Route ------- -11/Scrapyard -10/Materials (discovered 5 exits: [*Mat x3] / *Min x2) -10/Mines (discovered 1 exit: [*Mat]) History --------- Turn | Location | Event 2 | -11/Scrapyard | Met Revision 17 66 | -11/Scrapyard | Discovered new exit (range 8) 90 | -11/Scrapyard | Entered Materials 158 | -10/Materials | Discovered new exit (range 9) 312 | -10/Materials | Build established: Mutant 360 | -10/Materials | Identified exit to Mines 391 | -10/Materials | Discovered new exit (range 6) 512 | -10/Materials | Repaired Lgt. Ion Engine 543 | -10/Materials | Repaired Lgt. Ion Engine? 635 | -10/Materials | Discovered new exit (range 8) 829 | -10/Materials | Discovered new exit (range 11) 902 | -10/Materials | Entered Mines 913 | -10/Mines | Excavation squad dispatched 913 | -10/Mines | A large section of the Mines collapsed 917 | -10/Mines | Met a Derelict bent on vengeance 946 | -10/Mines | Core integrity fell below 50% 982 | -10/Mines | Discovered new exit (range 5) 1023 | -10/Mines | Build established: Scavenger-Mutant 1083 | -10/Mines | Crushed by falling debris 1083 | -10/Mines | Core integrity fell below 20% 1142 | -10/Mines | Learned 2 Materials zone layouts 1221 | -10/Mines | Destroyed by G-34 Mercenary with Small Laser Last Messages --------------- Acquired 16 matter. Acquired 2 matter. Acquired derelict log, extracted data. Data stored: Materials zone layouts (x2). T-07 Excavator destroyed. Acquired 13 matter. R-06 Scavenger sends out distress signal. System corrupted: Lgt. Assault Rifle targeting data glitched. Destroyed Tractor Beam. System corrupted: Matter fused (-7). G-47 Trooper suffers critical hit. Destroyed Aluminum Leg. Lgt. Ion Engine destroyed. System corrupted: Lgt. Assault Rifle targeting data glitched. G-47 Trooper destroyed. Switching to secondary target: G-34 Mercenary. Lgt. Assault Rifle destroyed. Z#7 FR7OXJO7L4HH110RUGLDH:TH|S4 Acquired Particle Gun. Mining Laser destroyed. Map ----- +----------------------------------------------------+ | ?????????????????????????????????????????????????? | | ?????????????????????????????????????????????????? | | ?????????????????????????????????????????????????? | | ?????????????????????????????????????????????????? | | ?????????????????????????????????????????????????? | | ?????????????????????????????????????????????????? | | ?????????????????????????????????????????????????? | | ?????????????????????????????????????????????????? | | ?????????????????????????????????????????????????? | | ?????????????????????????????????????????????????? | | ?????????????????????????????? ??????????????????? | | ?????????????????????????????# ?????????????????? | | ?????????????????????????#### ???????###???????? | | ?????????????????????????# ???????## ###????? | | ????????????????????????? ???????# ##???? | | ????????????????????????? ????????# ####? | | ?????????????????????????# ?????????# ## | | ????????????????????????## ???????????# | | ???????????????????????## ????????????# | | ???????????????????????# #????????????## * | | ???????????????????????# #????????????## | | ???????????????????????# ######??????## | | ????????????????????????# ## ##?##### # | | ????????????????????????# ### ## | | ?????????????# ###;# ## | | ????????????# %@ ##### | | ?????????? g # ##?## | | ?????????? ############## ## ##??## | | ??????????? ????????????????## #######???# | | ????????????????????????????????######?????????## | | ????????????????????????????????????????????????# | | ????????????????????????????????????????????????# | | ???????????????????????????????????????????????## | | ???????????????????????????????????????????????# | | ???????????????????????????????????????????????# | | ???????????????????????????????????????????????#=" | | ???????????????????????????????????????????????## | | ????????????????????????????????????????????????## | | ?????????????????????????????????????????????????# | | ?????????????????????????????????????????????????? | | ?????????????????????????????????????????????????? | | ?????????????????????????????????????????????????? | | ?????????????????????????????????????????????????? | | ?????????????????????????????????????????????????? | | ?????????????????????????????????????????????????? | | ?????????????????????????????????????????????????? | | ?????????????????????????????????????????????????? | | ?????????????????????????????????????????????????? | | ?????????????????????????????????????????????????? | | ?????????????????????????????????????????????????? | +----------------------------------------------------+ Best States ------------- Heat Dissipation 25 Energy Generation 10 Energy Capacity 250 Matter Stores 300 Matter Capacity 300 Sight Range 18 Terrain Scan Density 60 Evasion (%) 50 Item Schematics ----------------- None Robot Schematics ------------------ None Fabricated ------------ Nothing Alien Tech Used ----------------- None Achievements -------------- Crack Shot Dramatic Entrance Challenges ------------ None Game ------ Seed ArcMinesnifferBoomstick Manual? 0 Play Time 00:28:31 Cumulative 1.9 hours Start 2020.11.20 @ 01:18:38 End 2020.11.20 @ 01:45:06 Sessions 1 Manual Loads 0 Difficulty Rogue Special Mode None Game No. 3 Rogue 3 Adventurer 0 Explorer 0 Win Type - Total 0 Types 0/0/0/0/0/0/0/0/0 Lore% 6 Gallery% 3 Achievement% 3 Wizard Run 0 Options --------- ASCII 0 Keyboard 0 Movement Numpad Keybinds 0 Fullscreen 1 Font 18/SmallcapsGlow Map View 76x50 Tactical HUD 0 Map Filters NONE Filters NONE Steam 1 RUN: 38191996-ba1d-49c6-8ff8-28ab54700310